bitfinex/quotes_BTCUSD_20241206
["timestamp","ask_amount","ask_price","bid_price","bid_amount"]
[1733501580863,0.0404,99644.0,99632.0,0.00100351]
[1733501581100,0.0404,99644.0,99627.0,0.0240035]
[1733501581308,0.001,99640.0,99628.0,0.00100349]
[1733501581519,0.001,99640.0,99630.0,0.023]
[1733501581739,0.00053741,99645.0,99630.0,0.023]
[1733501581740,0.0404,99643.0,99630.0,0.023]
[1733501582438,0.0404,99643.0,99639.0,0.01991163]
[1733501583100,0.0404,99643.0,99624.0,0.200753]
[1733501583101,0.0404,99638.0,99617.0,0.023]
[1733501583312,0.0404,99638.0,99619.0,0.023]
[1733501583525,0.0404,99638.0,99631.0,0.02020878]
[1733501584206,0.15053741,99645.0,99631.0,0.02020878]
[1733501584207,0.0404,99637.0,99631.0,0.02020878]
[1733501584418,0.0404,99639.0,99631.0,0.02020878]
[1733501584628,0.15053741,99645.0,99631.0,0.02020878]
[1733501584629,0.0404,99637.0,99631.0,0.02020878]
[1733501585047,0.0404,99638.0,99631.0,0.02320878]
[1733501585264,0.0404,99637.0,99631.0,0.02320878]
[1733501585488,0.200732,99635.0,99631.0,0.02020878]
[1733501585713,0.0404,99636.0,99631.0,0.02220878]
[1733501585948,0.001,99639.0,99631.0,0.02220878]
[1733501585949,0.0404,99637.0,99631.0,0.02220878]
[1733501586158,0.0404,99636.0,99631.0,0.02220878]
[1733501586793,0.0404,99636.0,99631.0,0.02020878]
[1733501587254,0.0404,99636.0,99631.0,0.02520878]
[1733501587464,0.0404,99635.0,99631.0,0.02120878]
[1733501587672,0.0404,99635.0,99631.0,0.03020878]
[1733501587887,0.0404,99635.0,99631.0,0.02920878]
[1733501588112,0.0404,99635.0,99631.0,0.03220878]
[1733501588574,0.0404,99635.0,99631.0,0.02320878]
[1733501588774,0.0404,99634.0,99631.0,0.02920878]
[1733501588988,0.0404,99634.0,99631.0,0.03220878]
[1733501589194,0.001,99635.0,99631.0,0.03220878]
[1733501589195,0.0404,99633.0,99631.0,0.03220878]
[1733501589941,0.001,99635.0,99631.0,0.03220878]
[1733501589942,0.001,99635.0,99632.0,0.02400361]
[1733501590192,0.00053741,99645.0,99632.0,0.02400361]
[1733501590193,0.0404,99636.0,99632.0,0.023]
[1733501590390,0.001,99634.0,99632.0,0.023]
[1733501590645,0.0404,99642.0,99632.0,0.023]
[1733501590856,0.00053741,99645.0,99632.0,0.04766929]
[1733501590857,0.0404,99638.0,99632.0,0.04766929]
[1733501591071,0.001,99633.0,99632.0,0.023]
[1733501591276,0.0404,99637.0,99632.0,0.023]
[1733501591480,0.00826427,99636.0,99631.0,0.02020878]
[1733501591683,0.00826427,99635.0,99632.0,0.003]
[1733501591891,0.00826427,99634.0,99632.0,0.003]
[1733501592101,0.00926427,99634.0,99632.0,0.012]
[1733501592306,0.00826424,99633.0,99632.0,0.009]
[1733501593319,0.00826424,99633.0,99631.0,0.01962897]
[1733501593320,0.02146665,99633.0,99631.0,0.01962897]
[1733501593524,0.22220465,99632.0,99631.0,0.01962897]
[1733501593736,0.02146665,99632.0,99631.0,0.02862897]
[1733501593944,0.241134,99635.0,99631.0,0.02862897]
[1733501594156,0.02150975,99634.0,99631.0,0.01962897]
[1733501594376,0.25437277,99633.0,99632.0,0.004]
[1733501594583,0.26264575,99633.0,99632.0,0.004]
[1733501594793,0.26364575,99633.0,99632.0,0.009]
[1733501595436,0.26364575,99633.0,99631.0,0.02262897]
[1733501595437,0.0404,99632.0,99631.0,0.02262897]
[1733501595678,0.06190975,99632.0,99631.0,0.02262897]
[1733501596709,0.06190975,99632.0,99631.0,0.01962897]
[1733501596928,0.02150975,99632.0,99631.0,0.02262897]
[1733501597136,0.02150975,99632.0,99631.0,0.01962897]
[1733501597137,0.04867298,99632.0,99631.0,0.01962897]
[1733501597379,0.04967298,99632.0,99631.0,0.02562897]
[1733501597785,0.06292731,99632.0,99631.0,0.008]
[1733501599375,0.11292731,99632.0,99631.0,0.008]
[1733501599586,0.0914,99632.0,99631.0,0.008]
[1733501599915,0.44896844,99632.0,99631.0,0.008]
[1733501600102,0.43571496,99632.0,99631.0,0.008]
[1733501600687,0.43471496,99632.0,99631.0,0.002]
[1733501600963,0.44114,99631.0,99630.0,0.0017286]
[1733501601134,0.55445496,99631.0,99630.0,0.0017286]
[1733501601433,0.55445496,99631.0,99590.0,0.00959668]
[1733501601434,0.35371496,99631.0,99590.0,0.00959668]
[1733501601592,0.0404,99617.0,99591.0,0.19609682]
[1733501601802,0.0404,99622.0,99600.0,0.11619986]
[1733501602009,0.0404,99622.0,99591.0,0.19710066]
[1733501602010,0.00828342,99621.0,99601.0,0.12903528]
[1733501602209,0.05,99630.0,99602.0,0.200799]
[1733501602210,0.00828342,99620.0,99602.0,0.200799]
[1733501602534,0.200747,99628.0,99601.0,0.12903528]
[1733501602535,0.00828342,99619.0,99604.0,0.023]
[1733501602668,0.00828342,99618.0,99605.0,0.00100376]
[1733501602876,0.00828342,99617.0,99616.0,0.02011182]
[1733501603915,0.00828342,99617.0,99616.0,0.04311182]
[1733501604113,0.003,99631.0,99617.0,0.023]
[1733501604365,0.00827682,99630.0,99618.0,0.00100365]
[1733501604570,0.00827682,99630.0,99619.0,0.00100364]
[1733501604769,0.0404,99632.0,99619.0,0.00100364]
[1733501604770,0.00827682,99629.0,99620.0,0.02400365]
[1733501605055,0.00827682,99628.0,99617.0,0.02400364]
[1733501605263,0.00827682,99627.0,99617.0,0.02400364]
[1733501605465,0.00827682,99627.0,99618.0,0.001]
[1733501605466,0.0404,99619.0,99618.0,0.001]
[1733501605668,0.68145006,99619.0,99618.0,0.001]
[1733501605877,0.68145006,99619.0,99581.0,0.22252962]
[1733501605878,0.0404,99592.0,99588.0,0.08901184]
[1733501606107,0.0404,99592.0,99582.0,0.01196154]
[1733501606108,0.0904,99583.0,99582.0,0.01196154]
[1733501606305,0.49727237,99583.0,99582.0,0.01196154]
[1733501606511,0.0404,99583.0,99582.0,0.01196154]
[1733501606717,0.0404,99583.0,99565.0,0.00100425]
[1733501606928,0.05,99584.0,99565.0,0.00100425]
[1733501606929,0.0404,99581.0,99565.0,0.00100425]
[1733501607147,0.0404,99601.0,99565.0,0.00100425]
[1733501607403,0.0404,99605.0,99582.0,0.200839]
[1733501607621,0.0404,99605.0,99580.0,0.02145018]
[1733501607622,0.0404,99597.0,99583.0,0.0385964]
[1733501607826,0.11619986,99600.0,99583.0,0.0385964]
[1733501607827,0.11619986,99600.0,99583.0,0.00100393]
[1733501608047,0.20903289,99604.0,99583.0,0.00100393]
[1733501608048,0.0404,99597.0,99583.0,0.00100393]
[1733501608281,0.00823789,99603.0,99583.0,0.00100393]
[1733501608676,0.04057306,99605.0,99585.0,0.023]
[1733501608677,0.0404,99601.0,99585.0,0.023]
[1733501608929,0.0404,99601.0,99587.0,0.023]
[1733501609153,0.00017306,99605.0,99588.0,0.00100394]
[1733501609365,0.00017306,99605.0,99589.0,0.023]
[1733501609611,0.00017306,99605.0,99599.0,0.02008022]
[1733501609854,0.0404,99603.0,99599.0,0.02008022]
[1733501610077,0.0404,99603.0,99590.0,0.0010039]
[1733501610078,0.0784,99602.0,99590.0,0.0010039]
[1733501610321,0.0404,99588.0,99581.0,0.023]
[1733501611529,0.0404,99588.0,99580.0,0.0017294]
[1733501611744,0.0404,99588.0,99586.0,0.006]
[1733501612007,0.200829,99587.0,99586.0,0.006]
[1733501612262,0.54626054,99587.0,99586.0,0.009]
[1733501613030,0.54626054,99587.0,99586.0,0.003]
[1733501613279,0.62186054,99587.0,99586.0,0.011]
[1733501613532,0.62186054,99587.0,99586.0,0.003]
[1733501613755,0.241241,99581.0,99580.0,0.0017294]
[1733501613976,0.200845,99579.0,99569.0,0.02031375]
[1733501614231,0.0404,99570.0,99569.0,0.02031375]
[1733501616742,0.0414,99570.0,99569.0,0.02931375]
[1733501616954,0.0414,99570.0,99569.0,0.03031375]
[1733501617553,0.001,99570.0,99569.0,0.02931375]
[1733501617556,0.001,99570.0,99569.0,0.05231375]
[1733501617745,0.001,99570.0,99569.0,0.19485852]
[1733501618180,0.0404,99596.0,99570.0,0.200863]
[1733501618378,0.0404,99595.0,99572.0,0.023]
[1733501618579,0.0404,99595.0,99569.0,0.08882293]
[1733501618580,0.0404,99595.0,99578.0,0.023]
[1733501618862,0.200832,99586.0,99580.0,0.023]
[1733501619071,0.200815,99594.0,99569.0,0.06582293]
[1733501619072,0.0404,99572.0,99569.0,0.02331375]
[1733501619296,0.0404,99572.0,99569.0,0.003]
[1733501619297,0.241263,99570.0,99569.0,0.003]
[1733501619515,0.391263,99570.0,99569.0,0.003]
[1733501619701,0.54629454,99570.0,99569.0,0.003]
[1733501619901,0.54629454,99570.0,99539.0,0.22214584]
[1733501619902,0.0404,99553.0,99534.0,0.200935]
[1733501620143,0.0404,99553.0,99535.0,0.00100441]
[1733501620939,0.0404,99551.0,99534.0,0.00100443]
[1733501621150,0.0404,99551.0,99520.0,0.2783924]
[1733501621151,0.200914,99545.0,99544.0,0.00021318]
[1733501621356,0.0904,99552.0,99544.0,0.02037362]
[1733501621357,0.200913,99546.0,99544.0,0.02037362]
[1733501621625,0.241308,99548.0,99544.0,0.00021318]
[1733501621831,0.241308,99548.0,99544.0,0.00421318]
[1733501622039,0.442216,99548.0,99544.0,0.00421318]
[1733501622852,0.0404,99548.0,99544.0,0.00421318]
[1733501623077,0.0404,99548.0,99544.0,0.00921318]
[1733501623293,0.125,99561.0,99544.0,0.00921318]
[1733501623294,0.0404,99552.0,99544.0,0.00021318]
[1733501623493,0.0404,99557.0,99544.0,0.00121318]
[1733501623727,0.0404,99552.0,99545.0,0.023]
[1733501624564,0.0404,99552.0,99525.0,0.023]
[1733501624767,0.0404,99552.0,99517.0,0.0456]
[1733501624768,0.04057296,99552.0,99544.0,0.001]
[1733501624967,0.04057296,99552.0,99547.0,0.01981858]
[1733501626134,0.00017296,99552.0,99547.0,0.01981858]
[1733501626332,0.00017296,99552.0,99547.0,0.02281858]
[1733501628545,0.00017296,99552.0,99547.0,0.12785012]
[1733501628739,0.00017296,99552.0,99549.0,0.023]
[1733501628944,0.00017296,99552.0,99551.0,0.023]
[1733501629150,0.00017296,99552.0,99551.0,0.12803154]
[1733501630114,0.00017296,99552.0,99551.0,0.13703154]
[1733501630115,0.00117296,99552.0,99551.0,0.13703154]
[1733501630289,0.00117296,99552.0,99551.0,0.12803154]
[1733501630656,0.0404,99571.0,99551.0,0.12803154]
[1733501630657,0.0159084,99571.0,99552.0,0.2009]
[1733501630791,0.0159084,99571.0,99553.0,0.12803154]
[1733501632649,0.0159084,99571.0,99554.0,0.200895]
[1733501632848,0.0159084,99571.0,99555.0,0.10503154]
[1733501633071,0.0159084,99571.0,99556.0,0.023]
[1733501633294,0.05,99580.0,99553.0,0.032]
[1733501633295,0.0159084,99580.0,99558.0,0.023]
[1733501633487,0.0159084,99580.0,99559.0,0.10503154]
[1733501633706,0.0817,99596.0,99571.0,0.023]
[1733501633873,0.0159084,99595.0,99573.0,0.023]
[1733501634073,0.0159084,99583.0,99573.0,0.023]
[1733501634252,0.200849,99578.0,99570.0,0.02051575]
[1733501634450,0.0159084,99571.0,99570.0,0.02051575]
[1733501635050,0.0159084,99571.0,99556.0,0.009]
[1733501635292,0.0159084,99563.0,99556.0,0.009]
[1733501635549,0.2168094,99552.0,99530.0,0.01973041]
[1733501635758,0.0159084,99552.0,99550.0,0.0017322]
[1733501636009,0.01608146,99552.0,99550.0,0.0017322]
[1733501636419,0.200902,99551.0,99550.0,0.0017322]
[1733501636593,0.01608146,99552.0,99550.0,0.0017322]
[1733501637436,0.01608146,99552.0,99550.0,0.0087322]
[1733501637669,0.01608146,99552.0,99550.0,0.0107322]
[1733501638123,0.00017306,99552.0,99550.0,0.0087322]
[1733501638347,0.00017306,99552.0,99551.0,0.023]
[1733501640036,0.01608146,99552.0,99551.0,0.006]
[1733501640653,0.14418146,99552.0,99551.0,0.006]
[1733501641056,0.25046862,99552.0,99551.0,0.006]
[1733501641284,0.249213,99552.0,99551.0,0.008]
[1733501642550,0.399213,99552.0,99551.0,0.008]
[1733501642763,0.399213,99552.0,99551.0,0.002]
[1733501642971,0.3668104,99551.0,99550.0,0.0017322]
[1733501643214,0.47184194,99551.0,99550.0,0.0017322]
[1733501643426,0.62673686,99551.0,99550.0,0.0017322]
[1733501643647,0.0659084,99551.0,99550.0,0.0017322]
[1733501643889,0.0159084,99551.0,99550.0,0.0017322]
[1733501644341,0.0199084,99551.0,99550.0,0.0017322]
[1733501644811,0.0229084,99551.0,99550.0,0.0017322]
[1733501645798,0.0229084,99551.0,99550.0,0.0247322]
[1733501645799,0.003,99551.0,99550.0,0.0247322]
[1733501646034,0.23883154,99551.0,99550.0,0.0017322]
[1733501646257,0.3497296,99551.0,99550.0,0.0017322]
[1733501646482,0.3517296,99551.0,99550.0,0.0017322]
[1733501646703,0.3517296,99551.0,99550.0,0.0067322]
[1733501646933,0.3497296,99551.0,99550.0,0.0067322]
[1733501647139,0.45073994,99551.0,99550.0,0.0067322]
[1733501647347,0.45073994,99551.0,99550.0,0.0027322]
[1733501647758,0.45173994,99551.0,99550.0,0.0027322]
[1733501648427,0.45173994,99551.0,99550.0,0.0017322]
[1733501648824,0.45073994,99551.0,99550.0,0.0017322]
[1733501649280,0.45873994,99551.0,99550.0,0.0027322]
[1733501649723,0.1059084,99551.0,99550.0,0.0027322]
[1733501649937,0.0789084,99551.0,99550.0,0.0037322]
[1733501650152,0.063,99551.0,99550.0,0.0037322]
[1733501650369,0.0739084,99551.0,99550.0,0.0027322]
[1733501650593,0.0709084,99551.0,99550.0,0.0017322]
[1733501650850,0.0709084,99551.0,99550.0,0.0027322]
[1733501650851,0.013,99551.0,99550.0,0.0027322]
[1733501651055,0.013,99551.0,99530.0,0.21580265]
[1733501651056,0.008,99551.0,99532.0,0.023]
[1733501651268,0.008,99551.0,99534.0,0.023]
[1733501651491,0.008,99551.0,99546.0,0.023]
[1733501651492,0.01,99551.0,99546.0,0.023]
[1733501652149,0.002,99551.0,99546.0,0.023]
[1733501652567,0.004,99551.0,99546.0,0.023]
[1733501652776,0.002,99551.0,99546.0,0.023]
[1733501652983,0.00017306,99552.0,99546.0,0.028]
[1733501653627,0.05,99550.0,99546.0,0.005]
[1733501653837,0.05,99550.0,99542.0,0.023]
[1733501654050,0.0159084,99551.0,99546.0,0.004]
[1733501654261,0.0159084,99551.0,99546.0,0.012]
[1733501654469,0.0159084,99551.0,99547.0,0.023]
[1733501654730,0.00117306,99552.0,99547.0,0.023]
[1733501655380,0.00017306,99552.0,99542.0,0.023]
[1733501656029,0.00017306,99552.0,99546.0,0.001]
[1733501656696,0.00017306,99552.0,99542.0,0.023]
[1733501656908,0.00117306,99552.0,99548.0,0.023]
[1733501657325,0.00017306,99552.0,99548.0,0.023]
[1733501657532,0.00017306,99552.0,99542.0,0.023]
[1733501657749,0.00017306,99552.0,99546.0,0.003]
[1733501657977,0.00017306,99552.0,99547.0,0.023]
[1733501658416,0.00017306,99552.0,99542.0,0.023]
[1733501658681,0.00017306,99552.0,99541.0,0.02018816]
[1733501658682,0.00017306,99552.0,99549.0,0.023]
[1733501659156,0.00117306,99552.0,99549.0,0.023]
[1733501659383,0.00117306,99552.0,99551.0,0.023]
[1733501659566,0.00017306,99552.0,99551.0,0.32893354]
[1733501659806,0.00017306,99552.0,99551.0,0.11803154]
[1733501659807,0.00117306,99552.0,99551.0,0.11803154]
[1733501660018,0.00017306,99552.0,99551.0,0.11803154]
[1733501660233,0.00017306,99552.0,99547.0,0.13389296]
[1733501660234,0.00017306,99552.0,99547.0,0.003]
[1733501660462,0.00117306,99552.0,99549.0,0.007]
[1733501660674,0.00117306,99552.0,99548.0,0.10503154]
[1733501660675,0.00017306,99552.0,99548.0,0.10503154]
[1733501660897,0.00017306,99552.0,99551.0,0.003]
[1733501661127,0.00117306,99552.0,99551.0,0.01]
[1733501661600,0.00117306,99552.0,99551.0,0.007]
[1733501662050,0.00117306,99552.0,99551.0,0.03]
[1733501662294,0.00117306,99552.0,99549.0,0.003]
[1733501662295,0.00017306,99552.0,99550.0,0.023]
[1733501662555,0.00117306,99552.0,99550.0,0.023]
[1733501663040,0.00017306,99552.0,99550.0,0.023]
[1733501663240,0.00117306,99552.0,99551.0,0.03]
[1733501663471,0.00017306,99552.0,99551.0,0.33193354]
[1733501663913,0.00017306,99552.0,99551.0,0.12803154]
[1733501663914,0.00117306,99552.0,99551.0,0.12803154]
[1733501664169,0.00117306,99552.0,99551.0,0.023]
[1733501664383,0.0159084,99566.0,99551.0,0.023]
[1733501664620,0.00093065,99560.0,99552.0,0.023]
[1733501664847,0.00093065,99560.0,99551.0,0.023]
[1733501665112,0.00093065,99560.0,99551.0,0.026]
[1733501665752,0.001,99552.0,99551.0,0.01]
[1733501666265,0.200889,99557.0,99551.0,0.003]
[1733501666509,0.200889,99557.0,99540.0,0.13389296]
[1733501666510,0.200912,99546.0,99542.0,0.08926793]
[1733501666798,0.0659084,99531.0,99527.0,0.08926793]
[1733501667017,0.0659084,99531.0,99521.0,0.08926793]
[1733501667018,0.2668504,99531.0,99521.0,0.08926793]
[1733501667233,0.60338194,99531.0,99513.0,0.08926793]
[1733501667449,0.60338194,99531.0,99510.0,0.08926793]
[1733501667676,0.60338194,99531.0,99493.0,0.08926793]
[1733501667913,0.60338194,99531.0,99496.0,0.01984294]
[1733501668872,0.60638194,99531.0,99496.0,0.01984294]
[1733501670139,0.60338194,99531.0,99496.0,0.01984294]
[1733501670364,0.60638194,99531.0,99496.0,0.01984294]
[1733501670624,0.69011393,99531.0,99490.0,0.001731]
[1733501670849,0.68411393,99531.0,99490.0,0.001731]
[1733501671076,0.68711393,99531.0,99490.0,0.001731]
[1733501671304,0.69011393,99531.0,99495.0,0.01980276]
[1733501671976,0.69011393,99531.0,99490.0,0.001731]
[1733501672416,0.5440704,99521.0,99490.0,0.001731]
[1733501672632,0.64910194,99521.0,99490.0,0.001731]
[1733501672859,0.15,99520.0,99490.0,0.001731]
[1733501673075,0.3464314,99491.0,99490.0,0.001731]
[1733501673613,0.34650086,99491.0,99490.0,0.001731]
[1733501673999,0.14547786,99491.0,99490.0,0.001731]
[1733501674427,0.14547786,99491.0,99490.0,0.002731]
[1733501674428,0.01597786,99491.0,99490.0,0.002731]
[1733501674991,0.00106946,99491.0,99490.0,0.002731]
[1733501676626,0.00106946,99491.0,99490.0,0.025731]
[1733501676842,0.00106946,99491.0,99490.0,0.17806201]
[1733501677534,6.946e-05,99491.0,99490.0,0.17706201]
[1733501677996,6.946e-05,99491.0,99490.0,0.17906201]
[1733501678258,6.946e-05,99491.0,99490.0,0.17706201]
[1733501679150,6.946e-05,99491.0,99490.0,0.14950611]
[1733501679578,0.00206946,99491.0,99490.0,0.16050611]
[1733501680018,0.0659084,99512.0,99496.0,0.201013]
[1733501680236,0.05,99510.0,99491.0,0.224023]
[1733501680451,0.0159084,99512.0,99490.0,0.13808399]
[1733501680452,0.05,99519.0,99493.0,0.023]
[1733501680724,0.05,99517.0,99505.0,0.023]
[1733501680965,0.05,99517.0,99498.0,0.201007]
[1733501680966,0.05,99517.0,99499.0,0.023]
[1733501681201,0.05,99517.0,99495.0,0.023]
[1733501681440,0.200972,99516.0,99497.0,0.023]
[1733501681659,0.05,99509.0,99497.0,0.023]
[1733501682147,0.05,99509.0,99497.0,0.02931609]
[1733501682652,0.05,99512.0,99497.0,0.02931609]
[1733501682891,0.0159084,99514.0,99497.0,0.02931609]
[1733501682892,0.0159084,99514.0,99499.0,0.024]
[1733501683419,0.001,99509.0,99499.0,0.201006]
[1733501683620,0.001,99509.0,99498.0,0.023]
[1733501683621,0.05,99520.0,99502.0,0.023]
[1733501683887,0.350945,99530.0,99497.0,0.00631609]
[1733501683888,0.05,99510.0,99497.0,0.01331609]
[1733501684135,0.200974,99515.0,99498.0,0.023]
[1733501684136,0.05,99509.0,99498.0,0.023]
[1733501684616,0.05,99509.0,99497.0,0.01976431]
[1733501684617,0.05,99509.0,99500.0,0.023]
[1733501684843,0.0159084,99516.0,99502.0,0.023]
[1733501685075,0.0159084,99516.0,99504.0,0.023]
[1733501685511,0.0159084,99516.0,99500.0,0.023]
[1733501685512,0.0159084,99521.0,99500.0,0.19739847]
[1733501685756,0.05,99554.0,99490.0,0.20333388]
[1733501685757,0.0159084,99532.0,99516.0,0.200971]
[1733501686024,0.0159084,99532.0,99517.0,0.023]
[1733501686257,0.0159084,99532.0,99518.0,0.02669635]
[1733501686490,0.05,99534.0,99519.0,0.023]
[1733501686956,0.003,99532.0,99519.0,0.023]
[1733501687221,0.004,99532.0,99519.0,0.023]
[1733501687468,0.0169084,99532.0,99519.0,0.023]
[1733501687721,0.0159084,99532.0,99521.0,0.023]
[1733501688370,0.0159084,99532.0,99520.0,0.023]
[1733501689111,0.0159084,99532.0,99520.0,0.02357788]
[1733501689354,0.200935,99535.0,99520.0,0.00057788]
[1733501689355,0.3429704,99521.0,99520.0,0.00057788]
[1733501689580,0.64690194,99521.0,99520.0,0.00057788]
[1733501690053,0.64690194,99521.0,99520.0,0.00757788]
[1733501690285,0.64690194,99521.0,99520.0,0.00357788]
[1733501690529,0.66990194,99521.0,99520.0,0.00357788]
[1733501690771,0.66990194,99521.0,99520.0,0.00057788]
[1733501690772,0.65290194,99521.0,99520.0,0.00057788]
[1733501691024,0.65690194,99521.0,99520.0,0.00057788]
[1733501691990,0.65090194,99521.0,99520.0,0.00057788]
[1733501692444,0.65290194,99521.0,99520.0,0.00157788]
[1733501692677,0.65090194,99521.0,99520.0,0.00057788]
[1733501693028,0.5478704,99521.0,99520.0,0.00057788]
[1733501693128,0.5438704,99521.0,99520.0,0.00057788]
[1733501693609,0.5458704,99521.0,99520.0,0.00057788]
[1733501693871,0.5438704,99521.0,99520.0,0.00057788]
[1733501694351,0.5458704,99521.0,99520.0,0.00057788]
[1733501695341,0.004,99521.0,99520.0,0.00057788]
[1733501695591,0.0679084,99521.0,99520.0,0.00057788]
[1733501696329,0.0659084,99521.0,99520.0,0.00057788]
[1733501696566,0.0659084,99521.0,99520.0,0.00257788]
[1733501696908,0.0659084,99521.0,99520.0,0.00357788]
[1733501696968,0.0659084,99521.0,99520.0,0.00157788]
[1733501697172,0.17219601,99521.0,99520.0,0.00057788]
[1733501697374,0.17319601,99521.0,99520.0,0.00057788]
[1733501698512,0.50600141,99521.0,99520.0,0.00057788]
[1733501698719,0.50374534,99521.0,99520.0,0.00057788]
[1733501698937,0.55204534,99521.0,99520.0,0.00057788]
[1733501699139,0.55604534,99521.0,99520.0,0.00057788]
[1733501699359,0.55404534,99521.0,99520.0,0.00057788]
[1733501699562,0.55204534,99521.0,99520.0,0.00057788]
[1733501699776,0.173,99520.0,99490.0,0.001731]
[1733501699989,0.3481314,99491.0,99490.0,0.001731]
[1733501700221,0.60316294,99491.0,99490.0,0.001731]
[1733501701234,0.60316294,99491.0,99490.0,0.00190406]
[1733501702016,0.60316294,99491.0,99490.0,0.00290406]
[1733501702220,0.60316294,99491.0,99490.0,0.00190406]
[1733501702702,0.3021084,99491.0,99490.0,0.00290406]
[1733501702869,0.0709084,99491.0,99490.0,0.00290406]
[1733501703095,0.0659084,99491.0,99490.0,0.00190406]
[1733501703310,0.0679084,99491.0,99490.0,0.00190406]
[1733501704057,0.0699084,99491.0,99490.0,0.00190406]
[1733501704892,0.054,99491.0,99490.0,0.00190406]
[1733501705183,0.004,99491.0,99490.0,0.00190406]
[1733501705390,0.004,99491.0,99462.0,0.0340916]
[1733501705604,0.05,99497.0,99490.0,0.001]
[1733501705809,0.05,99497.0,99490.0,0.02119077]
[1733501706010,0.05,99500.0,99490.0,0.02019077]
[1733501706222,0.05,99502.0,99490.0,0.02319077]
[1733501706461,0.05,99504.0,99491.0,0.02242248]
[1733501706677,0.05,99508.0,99491.0,0.02242248]
[1733501707142,0.05,99508.0,99490.0,0.02019077]
[1733501707369,0.05,99508.0,99490.0,0.22221477]
[1733501707841,0.05,99508.0,99494.0,0.201016]
[1733501708370,0.0159084,99523.0,99495.0,0.10503154]
[1733501708584,0.0659084,99529.0,99497.0,0.15]
[1733501708803,0.0659084,99529.0,99507.0,0.01968811]
[1733501709019,0.0659084,99529.0,99508.0,0.10503154]
[1733501709945,0.0784,99537.0,99507.0,0.01968811]
[1733501709946,0.002,99508.0,99507.0,0.01968811]
[1733501710412,0.05,99508.0,99484.0,0.15]
[1733501710620,0.05,99508.0,99486.0,0.00017329]
[1733501710840,0.05,99508.0,99503.0,0.01995754]
[1733501711019,0.05,99499.0,99486.0,0.00017329]
[1733501711252,0.082,99511.0,99487.0,0.10503154]
[1733501711464,0.0159084,99513.0,99487.0,0.10503154]
[1733501711465,0.0659084,99513.0,99498.0,0.22134122]
[1733501711683,0.05,99512.0,99498.0,0.02033322]
[1733501711897,0.000867,99520.0,99499.0,0.10503154]
[1733501711898,0.050867,99520.0,99499.0,0.10503154]
[1733501712119,0.000867,99520.0,99506.0,0.200991]
[1733501712338,0.001867,99520.0,99508.0,0.006]
[1733501712551,0.000867,99520.0,99507.0,0.002]
[1733501712991,0.000867,99520.0,99507.0,0.20299]
[1733501713204,0.000867,99520.0,99508.0,0.2413858]
[1733501713421,0.000867,99520.0,99508.0,0.0433988]
[1733501713809,0.000867,99520.0,99508.0,0.0403988]
[1733501714013,0.000867,99520.0,99503.0,0.200998]
[1733501714240,0.000867,99520.0,99507.0,0.001]
[1733501715069,0.0608754,99526.0,99519.0,0.02053623]
[1733501715275,0.044967,99533.0,99519.0,0.02053623]
[1733501716368,0.04554483,99533.0,99519.0,0.02053623]
[1733501716591,0.04654483,99533.0,99519.0,0.02053623]
[1733501716936,0.04854483,99533.0,99520.0,0.02215072]
[1733501717142,0.04854483,99533.0,99519.0,0.02053623]
[1733501717373,0.00157783,99533.0,99519.0,0.02053623]
[1733501717773,0.00357783,99533.0,99519.0,0.02053623]
[1733501718048,0.00357783,99533.0,99520.0,0.21195928]
[1733501718281,0.04754483,99533.0,99520.0,0.21195928]
[1733501718482,0.00257783,99533.0,99525.0,0.200954]
[1733501718691,0.00257783,99533.0,99520.0,0.21195928]
[1733501719056,0.05054483,99533.0,99519.0,0.10996277]
[1733501719299,0.044967,99522.0,99519.0,0.02053623]
[1733501719534,0.044967,99522.0,99513.0,0.08942654]
[1733501719535,0.200963,99521.0,99513.0,0.08942654]
[1733501719748,0.044967,99522.0,99519.0,0.001]
[1733501720386,0.044967,99522.0,99503.0,0.08942654]
[1733501720576,0.044967,99522.0,99517.0,0.01987184]
[1733501721876,0.0159084,99523.0,99517.0,0.01987184]
[1733501722136,0.044967,99522.0,99517.0,0.01987184]
[1733501722348,0.044967,99514.0,99502.0,0.08943215]
[1733501722563,0.044967,99514.0,99501.0,0.08943215]
[1733501722989,0.044967,99514.0,99500.0,0.01379236]
[1733501723200,0.044967,99514.0,99500.0,0.08943215]
[1733501723461,0.0776,99521.0,99505.0,0.200994]
[1733501723678,0.0776,99521.0,99513.0,0.02037627]
[1733501723679,0.001,99514.0,99513.0,0.02037627]
[1733501724111,0.0608754,99516.0,99513.0,0.02037627]
[1733501724329,0.044967,99516.0,99513.0,0.02037627]
[1733501724550,0.001,99514.0,99513.0,0.02037627]
[1733501725184,0.201976,99514.0,99513.0,0.02037627]
[1733501725401,0.201976,99514.0,99497.0,0.08943215]
[1733501725402,0.201009,99498.0,99497.0,0.08943215]
[1733501725611,0.044967,99502.0,99498.0,0.01979949]
[1733501725863,0.0753,99501.0,99500.0,0.001]
[1733501726135,0.0753,99501.0,99497.0,0.01983968]
[1733501726136,0.201005,99500.0,99497.0,0.01983968]
[1733501726366,0.044967,99497.0,99490.0,0.001734]
[1733501726596,0.201021,99492.0,99490.0,0.001734]
[1733501726819,0.201021,99492.0,99490.0,0.00190729]
[1733501727044,0.201013,99496.0,99490.0,0.00190729]
[1733501727275,0.201021,99493.0,99490.0,0.00190729]
[1733501727520,0.201019,99493.0,99491.0,0.0198317]
[1733501727773,0.201019,99493.0,99490.0,0.00390729]
[1733501727774,0.2618984,99491.0,99490.0,0.00390729]
[1733501728032,0.49392994,99491.0,99490.0,0.00390729]
[1733501728306,0.64392994,99491.0,99490.0,0.00490729]
[1733501728530,0.64392994,99491.0,99455.0,0.02046488]
[1733501728531,0.32705,99461.0,99455.0,0.02046488]
[1733501729018,0.32705,99461.0,99460.0,0.00179806]
[1733501729735,0.3429584,99461.0,99460.0,0.00379806]
[1733501731656,0.52708098,99461.0,99460.0,0.00379806]
[1733501731918,0.44798994,99461.0,99460.0,0.00379806]
[1733501732145,0.44798994,99461.0,99430.0,0.0017304]